bitfinex-derivatives/quotes_SOLF0:USTF0_20250509
["timestamp","ask_amount","ask_price","bid_price","bid_amount"]
[1746791966671,5.8007,172.42,172.37,9.42559395]
[1746791966867,35.2743,172.45,172.38,3.06871805]
[1746791967069,35.2743,172.45,172.39,3.06871805]
[1746791967269,459.82,172.46,172.4,9.42559395]
[1746791967470,3.6502,172.49,172.41,3.06871805]
[1746791967669,3.6502,172.49,172.42,3.06871805]
[1746791967877,3.6502,172.49,172.43,3.06871805]
[1746791968167,5.7986,172.48,172.44,8.86841805]
[1746791968475,14.56866937,172.49,172.32,5.6718]
[1746791968663,349.94107428,172.48,172.32,5.6718]
[1746791969170,349.94107428,172.48,172.32,38.9918]
[1746791969371,10.91846937,172.45,172.19,459.62]
[1746791969570,383.26107428,172.44,172.23,14.65996937]
[1746791969769,5.8029,172.36,172.31,5.8043]
[1746791970873,5.8029,172.36,172.32,5.8039]
[1746791971473,5.802,172.38,172.26,33.32]
[1746791971774,33.32,172.39,172.26,33.32]
[1746791971974,39.1216,172.39,172.35,5.8028]
[1746791972171,33.3,172.44,172.32,33.3]
[1746791972368,33.3,172.44,172.33,5.7301]
[1746791972573,5.8011,172.41,172.36,5.8024]
[1746791972872,33.3,172.44,172.33,5.7301]
[1746791973073,5.8013,172.41,172.36,5.8024]
[1746791973374,33.3,172.44,172.33,5.7301]
[1746791974177,39.1002,172.44,172.39,5.8015]
[1746791974377,33.3,172.44,172.33,5.7301]
[1746791974576,349.94107428,172.51,172.33,5.7301]
[1746791974772,33.28,172.48,172.33,5.7301]
[1746791974969,349.94107428,172.51,172.35,17.73655479]
[1746791975469,5.7986,172.48,172.35,17.73655479]
[1746791975867,17.73655479,172.53,172.35,17.73655479]
[1746791976066,1.8507,172.54,172.35,17.73655479]
[1746791976067,5.7982,172.5,172.45,5.7993]
[1746791976472,39.0575,172.52,172.47,5.7988]
[1746791976676,5.7975,172.52,172.41,3.6942]
[1746791976873,35.1575,172.58,172.43,17.73655479]
[1746791978078,1.9175,172.58,172.44,62.0]
[1746791978278,5.7954,172.58,172.53,5.7968]
[1746791978774,5.7943,172.61,172.54,5.7963]
[1746791979074,33.22,172.61,172.5,33.22]
[1746791979377,5.7951,172.59,172.53,5.7967]
[1746791980079,5.7953,172.58,172.53,5.7967]
[1746791980580,5.7953,172.58,172.54,2.91092624]
[1746791980775,5.7953,172.58,172.55,2.91092624]
[1746791980981,5.7953,172.58,172.56,2.91092624]
[1746791981179,5.7953,172.58,172.57,2.91092624]
[1746791983178,5.7973,172.52,172.46,33.18]
[1746791983482,33.22,172.61,172.48,5.7983]
[1746791983683,33.22,172.61,172.45,35.0596]
[1746791984077,17.73655479,172.59,172.45,1.8996]
[1746791984783,17.73655479,172.59,172.47,5.7987]
[1746791985082,17.73655479,172.59,172.45,1.8996]
[1746791985382,5.7963,172.55,172.49,5.798]
[1746791985774,5.7963,172.55,172.45,1.8996]
[1746791985974,5.7966,172.54,172.49,5.7979]
[1746791986273,33.14,172.56,172.45,1.8996]
[1746791986476,351.85857428,172.62,172.47,17.73655479]
[1746791986673,351.85857428,172.62,172.48,33.14]
[1746791986873,5.795,172.59,172.54,5.7964]
[1746791987181,33.14,172.59,172.48,33.14]
[1746791987382,33.14,172.59,172.49,1.9007]
[1746791987684,1.9175,172.62,172.51,17.73655479]
[1746791987981,1.9175,172.62,172.57,5.7953]
[1746791988378,367.32107428,172.61,172.37,11.6041]
[1746791988676,17.70357468,172.58,172.37,32.97537468]
[1746791988877,33.12,172.57,172.44,5.7997]
[1746791989079,5.7976,172.51,172.44,5.7997]
[1746791989275,5.7976,172.51,172.42,1.9007]
[1746791989480,33.12,172.57,172.43,5.8002]
[1746791989681,33.12,172.57,172.42,1.9007]
[1746791990080,33.12,172.57,172.43,5.7999]
[1746791990281,33.12,172.57,172.37,21.37127468]
[1746791990479,33.12,172.57,172.41,5.8007]
[1746791990881,11.592,172.56,172.38,34.9202]
[1746791991189,17.70357468,172.54,172.39,33.1]
[1746791991380,1.8202,172.53,172.39,33.1]
[1746791991581,33.1,172.52,172.39,33.1]
[1746791991781,33.1,172.52,172.4,5.8011]
[1746791992188,5.7998,172.45,172.4,5.8011]
[1746791992388,33.1,172.52,172.39,5.8016]
[1746791992682,5.8006,172.43,172.37,3.6677]
[1746791993089,33.08,172.47,172.37,3.6677]
[1746791993484,1.8202,172.53,172.37,3.6677]
[1746791993691,33.08,172.52,172.37,3.6677]
[1746791994290,5.7992,172.47,172.43,5.8]
[1746791995089,5.7992,172.47,172.44,2.83169198]
[1746791995389,5.7993,172.46,172.45,2.83169198]
[1746791997191,5.7993,172.46,172.45,2.83254947]
[1746791997688,5.7998,172.45,172.4,5.8012]
[1746791997889,33.06,172.47,172.37,3.6677]
[1746791998191,33.06,172.47,172.37,1.8584]
[1746791998390,33.06,172.47,172.31,19.71291397]
[1746791998391,33.06,172.47,172.32,3.7845]
[1746791998890,5.801,172.41,172.37,5.8022]
[1746791999091,459.28,172.49,172.37,5.8022]
[1746791999092,33.04,172.42,172.37,5.8022]
[1746791999390,5.8019,172.39,172.35,5.8027]
[1746791999589,33.04,172.42,172.31,1.0]
[1746791999985,5.8026,172.37,172.31,1.0]
[1746792000587,5.8021,172.38,172.31,1.0]
[1746792000991,33.04,172.42,172.31,1.0]
[1746792001192,5.8017,172.39,172.36,5.8026]
[1746792001891,5.802,172.38,172.35,5.8029]
[1746792002094,33.04,172.42,172.31,1.0]
[1746792002391,33.02,172.41,172.31,1.0]
[1746792003089,33.0,172.4,172.31,1.0]
[1746792003294,1.9247,172.45,172.31,1.0]
[1746792003594,33.0,172.44,172.32,33.0]
[1746792003793,349.94107428,172.48,172.34,17.70357468]
[1746792003995,33.0,172.47,172.34,17.70357468]
[1746792004288,33.0,172.47,172.31,1.0]
[1746792004496,5.8021,172.38,172.34,5.8032]
[1746792004685,5.8021,172.38,172.31,1.0]
[1746792005090,33.0,172.42,172.31,1.0]
[1746792005589,17.70357468,172.41,172.31,1.0]
[1746792006196,5.804,172.32,172.31,1.0]
[1746792006395,32.98,172.33,172.23,1.8166]
[1746792007293,492.42,172.38,172.24,32.98]
[1746792007898,492.42,172.38,172.32,5.8038]
[1746792008194,459.44,172.38,172.24,32.98]
[1746792009293,459.44,172.38,172.23,1.8166]
[1746792009593,459.44,172.38,172.23,34.7766]
[1746792009796,459.44,172.38,172.24,2.77105953]
[1746792010097,459.44,172.38,172.25,2.77105953]
[1746792010294,32.96,172.39,172.26,4.66345953]
[1746792010494,32.96,172.39,172.27,4.67065953]
[1746792010695,32.96,172.39,172.28,35.73105953]
[1746792010996,32.96,172.43,172.29,2.77105953]
[1746792011197,5.801,172.41,172.3,2.77105953]
[1746792011398,32.96,172.43,172.31,4.61985953]
[1746792011591,32.96,172.43,172.32,2.77105953]
[1746792011788,32.96,172.43,172.33,35.71105953]
[1746792011989,32.96,172.43,172.34,2.77105953]
[1746792012193,32.96,172.43,172.35,2.77105953]
[1746792012398,32.96,172.43,172.36,2.77105953]
[1746792012598,32.96,172.43,172.37,2.77105953]
[1746792012797,32.96,172.43,172.38,2.77105953]
[1746792012996,32.96,172.43,172.39,2.76889694]
[1746792013196,32.96,172.43,172.4,2.76889694]
[1746792013397,5.8006,172.42,172.41,2.76889694]
[1746792014196,492.46,172.46,172.41,2.76889694]
[1746792014396,492.46,172.46,172.42,2.76737914]
[1746792014704,5.7999,172.44,172.43,2.76737914]
[1746792014895,492.46,172.46,172.43,2.76737914]
[1746792015109,32.92,172.5,172.44,2.76737914]
[1746792015309,32.92,172.5,172.45,2.76737914]
[1746792015607,17.70357468,172.48,172.46,7.914e-05]
[1746792015811,17.70357468,172.48,172.32,1.9513]
[1746792016012,17.70357468,172.48,172.32,34.8713]
[1746792016212,5.8017,172.39,172.35,5.8029]
[1746792016413,17.70357468,172.4,172.28,1.9846]
[1746792016714,32.9,172.39,172.28,1.9846]
[1746792017314,5.8027,172.36,172.32,5.8039]
[1746792017515,32.9,172.39,172.28,1.9846]
[1746792019115,5.8025,172.37,172.28,1.9846]
[1746792019415,32.9,172.39,172.28,1.9846]
[1746792020316,1.866,172.43,172.28,1.9846]
[1746792021616,1.866,172.43,172.3,17.70357468]
[1746792021817,1.866,172.43,172.31,32.88]
[1746792023308,5.801,172.41,172.38,5.8019]
[1746792023711,5.801,172.41,172.31,32.88]
[1746792024117,5.8013,172.4,172.31,32.88]
[1746792024419,1.866,172.43,172.37,5.8023]
[1746792024616,1.866,172.43,172.31,32.88]
[1746792024820,32.88,172.44,172.31,32.88]
[1746792025514,5.8016,172.39,172.3,17.70357468]
[1746792025719,32.88,172.44,172.31,32.84]
[1746792026718,5.8017,172.39,172.35,5.8027]
[1746792027419,5.8014,172.4,172.36,8.50171657]
[1746792027719,32.88,172.44,172.37,2.69911657]
[1746792028021,32.88,172.44,172.38,8.50091657]
[1746792028319,32.88,172.44,172.39,2.69911657]
[1746792028520,32.88,172.44,172.4,2.69911657]
[1746792028723,32.88,172.44,172.41,2.69911657]
[1746792029023,32.88,172.44,172.42,2.69911657]
[1746792029321,38.6799,172.44,172.43,2.69911657]
[1746792030622,5.8008,172.42,172.39,5.8015]
[1746792030820,32.88,172.44,172.4,2.7016277]
[1746792031023,32.88,172.44,172.41,2.7016277]
[1746792031322,50.58357468,172.44,172.31,32.8]
[1746792031516,1.9755,172.43,172.31,32.8]
[1746792031719,5.8019,172.39,172.3,32.8]
[1746792031922,1.9755,172.43,172.3,32.8]
[1746792032326,32.88,172.44,172.4,5.8012]
[1746792032525,32.88,172.44,172.3,32.8]
[1746792032726,5.8015,172.4,172.36,5.8025]
[1746792033225,32.88,172.44,172.3,32.8]
[1746792033226,5.801,172.41,172.38,5.8019]
[1746792033426,32.88,172.44,172.38,5.8019]
[1746792033725,32.88,172.44,172.3,32.8]
[1746792034319,32.88,172.44,172.31,62.0]
[1746792034627,32.88,172.44,172.3,32.8]
[1746792035527,32.88,172.44,172.28,1.9846]
[1746792035722,32.88,172.44,172.28,34.7646]
[1746792036020,5.8022,172.38,172.35,5.8029]
[1746792036226,32.88,172.44,172.3,1.0]
[1746792036731,32.88,172.44,172.33,5.8035]
[1746792037029,32.88,172.44,172.3,1.0]
[1746792037217,10.91089081,172.41,172.3,1.0]
[1746792037528,1.8726,172.4,172.3,1.0]
[1746792037731,5.8037,172.33,172.3,6.8045]
[1746792037920,32.76,172.39,172.3,6.8045]
[1746792038121,32.76,172.39,172.3,1.0]
[1746792038315,32.76,172.39,172.31,5.8041]
[1746792038526,32.76,172.39,172.3,1.0]
[1746792038930,5.8043,172.31,172.3,1.0]
[1746792039118,10.91089081,172.32,172.23,1.914]
[1746792039321,10.91089081,172.32,172.22,0.87]
[1746792039322,43.67089081,172.32,172.22,0.87]
[1746792039526,1.8726,172.31,172.22,0.87]
[1746792039921,5.807,172.23,172.22,0.87]
[1746792040123,32.76,172.27,172.22,0.87]
[1746792040427,32.76,172.27,172.22,5.8071]
[1746792040621,32.76,172.27,172.16,32.76]
[1746792040821,32.76,172.27,172.25,5.8062]
[1746792041023,32.76,172.27,172.16,32.76]
[1746792041024,1.8726,172.31,172.16,43.67089081]
[1746792041226,32.74,172.32,172.16,43.67089081]
[1746792041528,492.28,172.36,172.2,10.91089081]
[1746792041722,498.0827,172.36,172.21,52.37525146]
[1746792041922,492.28,172.36,172.32,5.8039]
[1746792042122,492.28,172.36,172.26,32.74]
[1746792042828,34.6026,172.41,172.26,32.74]
[1746792043123,40.4038,172.41,172.36,5.8025]
[1746792043427,34.6026,172.41,172.37,2.5429631]
[1746792043629,32.74,172.41,172.38,2.5429631]
[1746792043928,477.35505146,172.44,172.39,2.5429631]
[1746792044124,459.62,172.44,172.4,2.5429631]
[1746792044327,459.62,172.44,172.41,2.5429631]
[1746792044628,459.62,172.44,172.42,2.5429631]
[1746792044829,465.4199,172.44,172.43,2.5429631]
[1746792045230,5.8019,172.39,172.34,5.803]
[1746792045426,5.8019,172.39,172.32,5.6325]
[1746792045625,1.9082,172.43,172.32,1.8688]
[1746792046129,17.73505146,172.4,172.28,32.72]
[1746792046330,32.72,172.39,172.27,1.8601]
[1746792046829,5.8025,172.37,172.32,5.8036]
[1746792047130,32.72,172.39,172.27,1.8601]
[1746792047930,5.8023,172.38,172.27,1.8601]
[1746792048229,32.72,172.39,172.27,1.8601]
[1746792048530,5.8024,172.37,172.33,5.8036]
[1746792048730,32.72,172.39,172.27,1.8601]
[1746792049028,32.7,172.4,172.27,1.8601]
[1746792049231,38.5013,172.4,172.36,5.8024]
[1746792049731,32.7,172.4,172.36,5.8024]
[1746792050136,459.62,172.44,172.31,32.7]
[1746792050327,32.7,172.49,172.31,32.7]
[1746792050629,351.85027428,172.52,172.34,17.73505146]
[1746792050829,32.7,172.51,172.35,5.9181]
[1746792051133,32.7,172.51,172.36,32.7]
[1746792051630,5.7998,172.45,172.41,5.8007]
[1746792052232,32.68,172.46,172.35,5.9181]
[1746792052431,32.68,172.46,172.35,38.5981]
[1746792052832,5.8009,172.42,172.38,5.8019]
[1746792053131,5.8009,172.42,172.35,38.5981]
[1746792053632,32.66,172.41,172.3,32.66]
[1746792053932,5.8014,172.4,172.3,32.66]
[1746792054332,32.66,172.41,172.3,32.66]
[1746792054730,32.66,172.41,172.27,5.7931]
[1746792054932,32.66,172.41,172.27,38.4531]
[1746792055126,17.73505146,172.4,172.27,38.4531]
[1746792055332,17.73505146,172.4,172.27,5.7931]
[1746792055535,809.50107428,172.42,172.27,5.7931]
[1746792055730,32.66,172.41,172.27,5.7931]
[1746792056234,32.66,172.46,172.31,11.6086]
[1746792056435,32.66,172.46,172.32,32.66]
[1746792056637,17.73505146,172.45,172.3,32.66]
[1746792057334,32.66,172.46,172.31,2.49031641]
[1746792057535,32.66,172.46,172.32,2.49031641]
[1746792057737,32.66,172.46,172.33,2.49031641]
[1746792058032,32.66,172.46,172.34,2.49031641]
[1746792058233,5.8018,172.39,172.35,8.29321641]
[1746792058433,17.73505146,172.45,172.36,2.49031641]
[1746792058633,17.73505146,172.45,172.37,2.49031641]
[1746792058833,17.73505146,172.45,172.38,0.47371641]
[1746792059036,17.73505146,172.41,172.27,5.7931]
[1746792059226,5.8028,172.36,172.33,5.8036]
[1746792059531,32.64,172.4,172.27,5.7931]
[1746792059738,5.8022,172.38,172.34,5.8032]
[1746792060035,5.8022,172.38,172.27,5.7931]
[1746792060337,349.94107428,172.44,172.29,17.73505146]
[1746792060535,32.64,172.46,172.3,32.64]
[1746792060734,32.64,172.46,172.39,5.8014]
[1746792060735,5.8003,172.43,172.39,5.8014]
[1746792061037,32.64,172.46,172.35,32.62]
[1746792061237,5.8016,172.4,172.36,9.6083]
[1746792061435,5.8016,172.4,172.36,1.9399]
[1746792061736,32.64,172.46,172.36,1.9399]
[1746792061939,32.64,172.46,172.36,7.7422]
[1746792062234,32.64,172.46,172.36,1.9399]
[1746792062435,5.8008,172.42,172.38,5.8017]
[1746792062638,32.64,172.46,172.36,1.9399]
[1746792062830,17.73505146,172.44,172.32,1.9842]
[1746792063035,5.803,172.35,172.32,7.7881]
[1746792063236,32.62,172.4,172.32,1.9842]
[1746792063737,32.62,172.4,172.29,1.9295]
[1746792063738,50.35505146,172.4,172.29,1.9295]
[1746792063936,32.62,172.4,172.29,1.9295]
[1746792065238,32.6,172.42,172.29,1.9295]
[1746792065639,5.8018,172.39,172.36,5.8025]
[1746792065840,5.8018,172.39,172.31,32.6]
[1746792066236,5.8009,172.42,172.31,32.6]
[1746792066537,32.6,172.44,172.32,1.8083]
[1746792066738,5.8009,172.42,172.38,5.8017]
[1746792067038,32.6,172.44,172.32,1.8083]
[1746792067237,5.8022,172.38,172.34,5.8031]
[1746792067435,32.6,172.44,172.32,1.8083]
[1746792067739,5.8013,172.4,172.32,1.8083]
[1746792067936,32.6,172.44,172.32,1.8083]
[1746792068131,17.7366375,172.38,172.23,12.6898079]
[1746792068433,35.1166375,172.26,172.14,34.14]
[1746792068627,17.7366375,172.21,172.14,34.14]
[1746792068837,32.58,172.2,172.14,34.14]
[1746792069039,17.78172461,172.19,172.1,15.68364247]
[1746792069236,17.79019578,172.15,172.1,5.64924247]
[1746792069530,5.8111,172.11,172.1,4.247e-05]
[1746792069735,17.79447189,172.13,172.02,1.8104]
[1746792070039,17.79447189,172.08,171.94,3.6502]
[1746792070236,17.81013867,172.04,171.89,1.01168673]
[1746792070537,17.82191185,171.99,171.79,17.82191185]
[1746792070735,5.8158,171.97,171.86,5.8195]
[1746792071038,32.58,171.98,171.87,2.22935193]
[1746792071336,32.6,171.97,171.88,8.04785193]
[1746792071539,32.6,171.97,171.89,2.22935193]
[1746792071840,32.6,171.97,171.9,2.22935193]
[1746792072139,1.06934403,171.96,171.82,62.69]
[1746792072339,1.06934403,171.95,171.83,2.2239117]
[1746792072540,1.06934403,171.96,171.84,2.2239117]
[1746792072838,1.06934403,171.95,171.85,2.2239117]
[1746792073137,1.06934403,171.94,171.86,2.2239117]
[1746792073337,1.06934403,171.93,171.86,5.8195]
[1746792073537,1.06934403,171.92,171.84,2.20733173]
[1746792073738,1.06938748,171.91,171.82,0.69]
[1746792073939,1.06938748,171.9,171.84,5.8199]
[1746792074139,32.6,171.94,171.82,0.69]
[1746792074340,33.66955949,171.93,171.82,0.69]
[1746792074537,1.06955949,171.92,171.83,2.20714265]
[1746792074738,1.06955949,171.91,171.84,2.20714265]
[1746792074937,1.06955949,171.9,171.85,2.20714265]
[1746792075238,32.6,171.96,171.86,2.20714265]
[1746792075542,1.06908857,171.95,171.87,34.80714265]
[1746792075840,459.8,172.03,171.88,67.94404265]
[1746792076041,32.58,172.05,172.0,5.8147]
[1746792076241,17.82546892,172.09,171.93,32.6]
[1746792076441,32.6,172.08,171.94,20.03261157]
[1746792076638,32.6,172.08,172.05,5.8128]
[1746792076938,32.6,172.08,171.99,32.6]
[1746792077241,32.6,172.08,172.06,5.8124]
[1746792077440,1.06841174,172.07,172.06,5.8124]
[1746792077642,1.06841174,172.07,172.0,1.7998]
[1746792078838,460.3,172.11,172.0,3.99050057]
[1746792079145,17.82546892,172.17,172.0,3.99050057]
[1746792079342,32.6,172.16,172.01,65.8801]
[1746792079941,32.6,172.16,172.02,2.19015379]
[1746792080240,5.81,172.15,172.02,2.1897625]
[1746792080543,32.6,172.16,172.02,2.1897625]
[1746792080741,1.06813769,172.15,172.13,5.8101]
[1746792080939,1.06813769,172.15,172.06,32.58]
[1746792081140,32.58,172.18,172.06,32.58]
[1746792081443,32.58,172.2,172.07,2.18861307]
[1746792082039,349.94107428,172.23,172.07,2.18861307]
[1746792082243,32.58,172.22,172.08,2.18861307]
[1746792082444,32.58,172.22,172.16,5.8091]
[1746792082745,50.40546892,172.22,172.09,2.18861307]
[1746792083043,17.82546892,172.18,172.04,32.58]
[1746792083240,32.58,172.17,172.05,2.19132935]
[1746792083445,5.8097,172.16,172.05,2.19178476]
[1746792083743,1.06795325,172.15,172.05,2.19178476]
[1746792083935,32.58,172.17,172.05,2.19178476]
[1746792084339,1.06771147,172.16,172.05,2.19178476]
[1746792084537,1.06771147,172.15,172.05,2.18894261]
[1746792084739,1.06771147,172.15,172.06,20.01441153]
[1746792084945,1.06771147,172.14,172.07,2.18894261]
[1746792085141,492.88,172.24,172.08,2.18894261]
[1746792085445,492.88,172.24,172.09,34.74894261]
[1746792085745,492.88,172.24,172.1,34.74894261]
[1746792085940,32.56,172.24,172.11,4.05524261]
[1746792086445,1.06752805,172.23,172.11,4.05408676]
[1746792086645,1.06752805,172.22,172.11,4.05408676]
[1746792086945,32.56,172.24,172.11,4.05408676]
[1746792087246,5.807,172.23,172.11,4.05408676]
[1746792087447,32.56,172.24,172.11,1.8663]
[1746792087843,5.807,172.23,172.17,5.809]
[1746792088146,32.56,172.24,172.11,1.8663]
[1746792088545,5.8075,172.22,172.16,5.8091]
[1746792088747,5.8075,172.22,172.11,1.8663]
[1746792088947,5.8075,172.22,172.16,5.8091]
[1746792089246,5.8075,172.22,172.11,1.8663]
[1746792089448,1.06769801,172.23,172.18,5.8085]
[1746792089647,38.3669,172.24,172.11,1.8663]
[1746792089648,1.06769801,172.21,172.11,1.8663]
[1746792089948,5.8082,172.2,172.11,1.8663]
[1746792090141,1.06769801,172.19,172.15,5.8094]
[1746792090342,6.87609801,172.19,172.11,1.8663]
[1746792090543,1.06769801,172.18,172.06,1.9749]
[1746792090746,32.54,172.19,172.06,1.9749]
[1746792090747,1.06769801,172.17,172.06,1.9749]
[1746792091043,1.06769801,172.16,172.13,5.8101]
[1746792091248,1.06769801,172.16,172.07,2.1896465]
[1746792091546,1.06769801,172.16,172.06,4.1645465]
[1746792091745,1.06769801,172.15,172.05,32.54]
[1746792091949,32.52,172.14,172.02,462.2523]
[1746792092144,33.58769801,172.14,172.02,1.9323]
[1746792092442,1.06769801,172.13,171.97,32.52]
[1746792092646,5.8127,172.07,172.02,5.814]
[1746792092946,32.52,172.07,171.97,32.52]
[1746792093149,6.88049801,172.06,172.01,5.8142]
[1746792093345,1.06769801,172.05,171.96,32.52]
[1746792093753,1.06769801,172.04,171.96,32.52]
[1746792094052,1.06769801,172.03,171.96,32.52]
[1746792094250,1.06769801,172.03,171.97,2.19093082]
[1746792094445,32.52,172.11,171.97,2.19093082]
[1746792094643,32.52,172.11,171.99,17.82546892]
[1746792094842,349.94107428,172.14,172.09,5.8117]
[1746792095043,32.52,172.15,172.09,5.8117]
[1746792095444,38.3298,172.15,172.1,5.8113]
[1746792095649,32.52,172.15,172.03,32.52]
[1746792095851,38.33,172.15,172.03,32.52]
[1746792096148,32.52,172.15,172.03,32.52]
[1746792096350,5.8102,172.14,172.03,32.52]
[1746792096547,32.52,172.15,172.03,32.52]
[1746792096749,32.52,172.15,172.04,1.9279]
[1746792097348,32.52,172.15,172.04,4.12327302]
[1746792098448,1.06809329,172.14,172.04,1.9279]
[1746792098650,1.06809329,172.14,172.08,5.8118]
[1746792098847,1.06809329,172.13,172.04,1.0]
[1746792099149,1.06809329,172.13,172.06,5.8126]
[1746792099356,1.06809329,172.12,172.04,1.0]
[1746792099751,1.06809329,172.12,172.05,1.9711]
[1746792099951,1.06809329,172.17,172.05,4.16919152]
[1746792100249,5.8103,172.14,172.09,5.8117]
[1746792100442,1.06796827,172.13,172.09,5.8117]
[1746792100648,1.06796827,172.12,172.05,1.9711]
[1746792100845,5.8114,172.1,172.04,1.0]
[1746792101255,1.06796827,172.11,172.04,1.0]
[1746792101645,50.30931488,172.16,172.08,5.812]
[1746792101950,1.06819024,172.1,172.04,1.0]
[1746792102753,32.52,172.11,172.04,1.0]
[1746792103356,1.06819024,172.1,172.04,1.0]
[1746792103748,1.0794,172.09,172.04,1.0]
[1746792103947,2.14759024,172.09,172.04,1.0]
[1746792104251,1.0794,172.09,172.04,1.0]
[1746792104451,5.8122,172.08,172.04,6.8133]
[1746792104751,1.0794,172.09,172.04,6.8133]
[1746792105051,1.0794,172.09,172.04,1.0]
[1746792105553,5.8125,172.07,172.04,1.0]
[1746792105755,1.06837395,172.08,172.04,1.0]
[1746792106951,5.8131,172.05,172.04,1.0]
[1746792107151,6.88147395,172.05,172.04,1.0]
[1746792108553,1.06837395,172.05,172.04,1.0]
[1746792108859,32.52,172.06,172.04,1.0]
[1746792109153,1.06864799,172.05,172.04,1.0]
[1746792109458,32.52,172.06,172.04,1.0]
[1746792109655,1.06874694,172.05,172.04,1.0]
[1746792109862,24.67806182,172.05,171.86,460.42]
[1746792110158,17.78931488,172.0,171.88,3.7784]
[1746792110457,5.8167,171.95,171.88,3.7784]
[1746792110657,5.8167,171.95,171.92,5.8173]
[1746792110857,32.52,171.99,171.88,3.7784]
[1746792111159,32.52,171.99,171.94,5.8168]
[1746792111455,32.52,172.02,171.9,32.52]
[1746792111650,32.52,172.05,171.9,32.52]
[1746792111856,5.8127,172.07,171.9,50.30931488]
[1746792112154,33.5994,172.09,171.9,50.30931488]
[1746792112560,5.8125,172.07,171.9,50.30931488]
[1746792112756,1.0794,172.09,171.92,11.6349]
[1746792113063,32.52,172.09,171.94,17.78931488]
[1746792113257,32.52,172.09,172.06,5.8126]
[1746792113758,32.52,172.09,172.05,5.813]
[1746792113958,32.52,172.09,172.0,32.52]
[1746792113959,32.52,172.09,172.01,3.8253]
[1746792114460,5.8107,172.12,172.01,3.8253]
[1746792114760,5.8114,172.1,172.01,3.8253]
[1746792115162,1.06835417,172.08,172.01,3.8253]
[1746792115361,1.06835417,172.09,172.01,3.8253]
[1746792115563,1.06835417,172.09,172.07,5.8123]
[1746792115862,32.52,172.13,172.01,3.8253]
[1746792116157,1.06828967,172.08,172.01,3.8253]
[1746792116362,33.58828967,172.12,172.01,3.8253]
[1746792116861,1.06828967,172.07,172.01,3.8253]
[1746792117263,1.06828967,172.11,172.01,3.8253]
[1746792117561,1.06828967,172.1,172.01,3.8253]
[1746792117957,1.06828967,172.09,172.01,3.8253]
[1746792118363,1.06828967,172.11,172.01,3.8253]
[1746792118663,1.06828967,172.1,171.96,32.52]
[1746792118863,1.06828967,172.1,171.96,36.3071]
[1746792119064,5.813,172.06,172.01,5.8141]
[1746792119268,1.06840078,172.05,171.96,36.3071]
[1746792119461,32.52,172.1,171.96,36.3071]
[1746792119663,38.3314,172.1,172.05,5.8128]
[1746792119966,1.06827981,172.09,171.96,36.3071]
[1746792120367,1.06827981,172.09,171.98,17.78931488]
[1746792120568,32.52,172.14,171.99,62.0]
[1746792121273,349.94107428,172.17,172.01,17.78931488]
[1746792121461,32.52,172.17,172.02,32.52]
[1746792121660,5.8095,172.16,172.12,5.8107]
[1746792121864,32.52,172.21,172.08,32.52]
[1746792122065,32.52,172.21,172.09,5.6334]
[1746792122772,5.8097,172.15,172.1,5.8112]
[1746792122966,5.8097,172.15,172.04,1.8635]